bitfinex/quotes_ETHUSD_20251217
["timestamp","ask_amount","ask_price","bid_price","bid_amount"]
[1765994648240,0.45233263,2861.1,2860.8,0.02097425]
[1765994648845,0.45233263,2861.1,2860.6,0.02097425]
[1765994649043,0.564,2861.2,2860.8,0.02097425]
[1765994649420,0.46438023,2861.1,2860.8,0.02097425]
[1765994650743,0.564,2861.2,2861.0,1.97417425]
[1765994651756,0.564,2861.2,2861.0,0.02097425]
[1765994653457,0.46438023,2861.5,2861.0,0.02097425]
[1765994653670,0.45219291,2861.4,2861.2,0.02097425]
[1765994654339,0.563,2861.6,2861.2,0.02097425]
[1765994654544,3.49296168,2862.9,2861.5,0.02097425]
[1765994654745,2.1376996,2862.7,2861.5,0.02097425]
[1765994654940,2.90458123,2862.4,2861.5,0.02097425]
[1765994655141,5.931428,2862.0,2860.7,4.2172]
[1765994655340,0.001,2861.2,2860.7,4.2172]
[1765994655541,0.001,2861.2,2860.6,2.264]
[1765994655952,0.001,2862.4,2861.0,0.02097425]
[1765994656277,3.541238,2862.2,2861.5,0.02097425]
[1765994656436,0.563,2862.3,2861.5,0.02097425]
[1765994656637,0.563,2862.3,2861.6,1.9532]
[1765994656638,1.36452798,2862.3,2861.6,1.9532]
[1765994656936,3.95824188,2862.2,2861.5,0.02097425]
[1765994657135,0.46438023,2862.1,2861.9,0.02097425]
[1765994657364,0.46438023,2862.1,2861.5,0.02097425]
[1765994657537,0.3641,2862.1,2861.7,0.02097425]
[1765994657868,0.38580148,2862.0,2861.9,0.02097425]
[1765994658062,1.82890821,2862.3,2861.9,0.02097425]
[1765994658265,0.46438023,2862.1,2861.9,0.02097425]
[1765994658478,5.32264397,2862.3,2861.9,0.02097425]
[1765994658770,8.81637973,2862.3,2861.9,0.02097425]
[1765994659085,0.46438023,2862.3,2862.0,0.02097425]
[1765994659284,4.19980102,2865.0,2862.0,0.02097425]
[1765994659285,0.563,2862.9,2862.2,4.23817425]
[1765994659497,0.563,2862.9,2862.2,0.02097425]
[1765994659975,0.563,2862.9,2862.3,0.02097425]
[1765994660155,0.563,2862.9,2862.4,0.02097425]
[1765994660762,0.46438023,2863.3,2862.4,0.02097425]
[1765994660959,6.98543536,2863.1,2862.7,0.02097425]
[1765994661182,0.46438023,2863.0,2862.4,0.02097425]
[1765994661355,0.46438023,2863.0,2862.8,0.02097425]
[1765994661552,0.46438023,2863.0,2862.4,0.02097425]
[1765994661759,0.3012,2862.9,2862.4,0.02097425]
[1765994662081,0.46438023,2862.7,2862.2,0.02097425]
[1765994662385,1.18144292,2862.6,2862.4,0.02097425]
[1765994662564,0.563,2862.6,2862.4,0.02097425]
[1765994662964,3.49357182,2862.4,2862.3,0.02097425]
[1765994663164,3.49357182,2862.4,2862.0,0.02097425]
[1765994663386,3.49357182,2862.4,2862.2,0.02097425]
[1765994663588,3.95788762,2862.5,2862.2,0.02097425]
[1765994663801,0.48010876,2862.4,2862.2,0.02097425]
[1765994664903,0.563,2862.6,2862.2,0.02097425]
[1765994665067,0.563,2862.6,2862.4,0.02097425]
[1765994665568,0.46438023,2862.5,2862.2,0.02097425]
[1765994665787,0.563,2862.6,2862.1,0.02097425]
[1765994665970,0.563,2862.6,2862.2,0.02097425]
[1765994665971,5.823293,2862.5,2862.2,0.02097425]
[1765994666172,1.33729586,2862.4,2862.3,0.02097425]
[1765994666371,0.46438023,2862.5,2862.3,0.02097425]
[1765994666570,1.02738023,2862.6,2862.3,0.02097425]
[1765994666790,0.46438023,2862.5,2862.3,0.02097425]
[1765994666990,0.563,2862.6,2862.3,0.02097425]
[1765994667207,0.563,2862.6,2862.3,0.0209485]
[1765994667418,0.563,2862.6,2862.3,4.85e-05]
[1765994667717,0.563,2862.6,2862.5,0.02097425]
[1765994668188,0.563,2862.6,2862.3,4.85e-05]
[1765994668510,0.563,2862.6,2862.5,0.02097425]
[1765994670409,0.562,2862.6,2862.5,0.02097425]
[1765994670614,0.562,2862.8,2862.5,0.02097425]
[1765994670790,0.001,2863.5,2862.7,0.02445372]
[1765994670976,0.562,2863.1,2862.9,0.02445372]
[1765994671309,0.562,2863.1,2862.7,1.97765372]
[1765994671310,0.562,2863.1,2863.0,0.02445372]
[1765994671680,0.46438023,2863.0,2862.7,0.02445372]
[1765994671895,2.3056,2863.1,2862.9,0.02445372]
[1765994672230,0.001,2863.5,2863.1,2.264]
[1765994672403,0.001,2863.7,2863.4,0.02445372]
[1765994673027,0.001,2863.7,2863.6,0.02445372]
[1765994673324,3.49139732,2864.2,2863.6,0.02445372]
[1765994673325,3.49101064,2864.5,2863.7,1.9532]
[1765994673494,6.613986,2864.3,2863.4,0.02445372]
[1765994673697,10.13136,2864.2,2863.4,0.02445372]
[1765994673928,2.2811,2864.1,2863.5,0.02445372]
[1765994674225,2.2811,2864.1,2862.5,1.9532]
[1765994674226,0.562,2864.0,2862.4,0.562]
[1765994674449,1.26029034,2864.4,2863.4,1.9532]
[1765994674618,1.05234116,2864.3,2863.8,0.02445372]
[1765994674816,4.863996,2864.2,2863.4,1.97765372]
[1765994675026,1.05234116,2864.3,2863.7,2.264]
[1765994675321,3.49193817,2864.6,2863.9,0.02445372]
[1765994675322,2.63813323,2864.5,2863.9,0.02445372]
[1765994675521,2.2811,2864.0,2863.6,0.02445372]
[1765994676744,2.2811,2863.8,2863.2,0.02445372]
[1765994677040,2.2811,2863.8,2863.4,0.02445372]
[1765994677241,0.46438023,2863.7,2863.4,0.02445372]
[1765994677447,1.43729963,2863.7,2863.4,0.02445372]
[1765994677747,1.43729963,2863.7,2863.2,0.02445372]
[1765994677924,2.72108023,2863.8,2863.4,0.02445372]
[1765994678344,2.72108023,2863.8,2863.2,0.02445372]
[1765994678645,2.69658023,2863.6,2862.9,0.02445372]
[1765994678822,3.25858023,2863.6,2862.9,0.02445372]
[1765994679030,0.46438023,2863.4,2862.6,1.97765372]
[1765994679221,0.46438023,2863.4,2862.8,0.02445372]
[1765994679222,0.46438023,2863.3,2862.8,0.02445372]
[1765994679421,2.69658023,2863.3,2862.8,0.02445372]
[1765994679821,2.2322,2863.3,2862.8,0.02445372]
[1765994680234,0.46438023,2863.4,2863.0,0.02445372]
[1765994680441,2.66045276,2863.3,2862.8,0.02445372]
[1765994680651,2.64658023,2863.1,2862.4,0.02445372]
[1765994680948,2.64658023,2863.1,2862.6,0.02445372]
[1765994681156,2.64658023,2863.1,2862.4,0.02445372]
[1765994681157,3.49308369,2862.8,2861.9,8.22536464]
[1765994681321,3.49308369,2862.8,2862.2,0.02445372]
[1765994681521,0.56752837,2862.7,2862.4,1.9147]
[1765994681753,0.46438023,2863.0,2862.6,0.02445372]
[1765994681957,0.46438023,2863.0,2862.4,0.02445372]
[1765994682138,0.46438023,2863.0,2862.5,0.02445372]
[1765994682469,2.64658023,2863.0,2862.5,0.02445372]
[1765994682770,17.50704,2862.7,2861.1,1.94115372]
[1765994682983,17.50704,2862.7,2861.2,1.9147]
[1765994682984,0.46438023,2862.4,2861.2,1.9147]
[1765994683178,0.46438023,2862.4,2861.2,5.40972373]
[1765994683465,0.46438023,2862.2,2861.2,1.9147]
[1765994683668,0.7451768,2862.1,2861.5,0.02445372]
[1765994683873,0.7451768,2862.1,2861.7,0.02445372]
[1765994684041,0.7451768,2862.1,2861.5,0.02445372]
[1765994684443,0.7451768,2862.1,2861.1,0.02645372]
[1765994684642,7.47814354,2861.8,2860.8,0.02445372]
[1765994684949,2.57378023,2861.3,2860.0,1.9167]
[1765994685139,0.562,2861.2,2860.1,3.49631317]
[1765994685344,4.05714972,2861.2,2860.1,3.49631317]
[1765994685578,4.05707834,2861.2,2860.2,1.9147]
[1765994685952,4.05707834,2861.2,2860.7,0.02445372]
[1765994686153,0.45214586,2861.1,2860.7,0.02445372]
[1765994686355,2.1094,2861.0,2859.0,10.13545993]
[1765994686556,6.807738,2860.9,2859.9,0.58645372]
[1765994686863,0.46438023,2860.7,2859.8,5.41137885]
[1765994687058,0.46438023,2860.7,2859.9,3.49661039]
[1765994687566,0.45214586,2861.1,2860.1,2.2545]
[1765994687753,0.45214586,2861.1,2860.0,0.03696503]
[1765994687754,0.563,2861.4,2860.8,0.02445372]
[1765994688159,0.563,2861.4,2860.6,1.93915372]
[1765994688557,2.032,2861.1,2860.4,0.02445372]
[1765994688862,2.032,2861.2,2860.5,0.02445372]
[1765994689256,2.032,2861.2,2860.7,0.02445372]
[1765994689469,0.2032,2861.1,2860.7,0.02445372]
[1765994689668,0.2032,2861.1,2860.5,0.02445372]
[1765994689669,0.46438023,2861.0,2860.5,0.02445372]
[1765994689973,2.49638023,2861.0,2860.4,0.02445372]
[1765994690161,3.05938023,2861.0,2860.2,0.02445372]
[1765994690496,2.0076,2860.6,2859.8,0.02445372]
[1765994690671,1.9811,2860.4,2859.5,0.02445372]
[1765994690876,1.9811,2860.4,2859.7,0.02445372]
[1765994691256,1.9811,2860.4,2859.5,0.02445372]
[1765994691452,0.46438023,2860.2,2859.5,0.02445372]
[1765994691658,1.9567,2860.1,2859.4,0.02445372]
[1765994691887,3.96003972,2860.7,2860.0,0.02445372]
[1765994692186,3.96003972,2860.7,2859.8,0.0594212]
[1765994692187,0.563,2860.6,2859.8,0.0594212]
[1765994692387,0.563,2860.6,2860.0,0.02445372]
[1765994692554,2.4952,2860.6,2859.8,0.02445372]
[1765994692754,2.4952,2860.6,2859.7,0.02445372]
[1765994692755,2.39658023,2860.5,2859.7,0.02445372]
[1765994692967,0.46944884,2860.4,2859.5,0.002]
[1765994693177,0.46438023,2860.5,2859.7,0.02445372]
[1765994693386,0.46438023,2860.5,2859.9,0.02445372]
[1765994693784,7.45635155,2860.5,2859.7,1.93915372]
[1765994694597,7.45635155,2860.5,2859.7,0.02445372]
[1765994695010,9.36415155,2860.5,2859.7,0.02445372]
[1765994695161,0.99271516,2860.4,2859.7,0.02445372]
[1765994695506,2.34768023,2860.3,2859.6,0.02245372]
[1765994695672,1.8324,2860.0,2859.6,0.02245372]
[1765994695874,1.8324,2860.0,2859.2,1.9167]
[1765994696105,1.8304,2859.8,2859.2,0.02445372]
[1765994696401,0.74604,2859.7,2859.2,0.02445372]
[1765994696992,0.18304,2859.7,2859.4,1.93915372]
[1765994697236,0.563,2860.0,2859.4,0.02445372]
[1765994697899,4.05956774,2860.0,2859.4,0.02445372]
[1765994698733,7.55613548,2860.0,2859.4,0.02445372]
[1765994698900,1.8304,2859.9,2859.0,0.02445372]
[1765994699109,1.8304,2859.9,2859.1,0.02445372]
[1765994699333,2.72015355,2859.8,2859.1,0.02445372]
[1765994699810,0.46438023,2859.7,2859.3,0.02445372]
[1765994699998,0.46438023,2859.7,2859.1,0.02445372]
[1765994699999,0.46438023,2859.7,2859.1,0.02645372]
[1765994700196,0.46438023,2859.7,2858.5,4.19365372]
[1765994700197,1.755,2859.6,2858.5,4.19365372]
[1765994700419,1.6817,2859.4,2858.8,0.02445372]
[1765994701408,0.562,2859.6,2859.3,0.02445372]
[1765994701723,0.562,2859.6,2859.0,1.93915372]
[1765994701908,0.562,2859.6,2859.2,0.02445372]
[1765994702306,3.4968703,2859.7,2859.2,0.02445372]
[1765994702549,0.46438023,2859.8,2859.5,4.1692]
[1765994702714,1.02638023,2860.0,2859.4,0.02445372]
[1765994703025,1.6328,2859.8,2858.8,0.02445372]
[1765994703227,9.76272047,2860.0,2858.4,0.002]
[1765994703228,1.6328,2859.1,2858.4,0.002]
[1765994703414,2.09518023,2859.0,2858.1,0.002]
[1765994703613,1.6308,2859.0,2858.1,0.002]
[1765994703815,0.562,2859.2,2858.2,1.9147]
[1765994704138,0.46438023,2859.1,2858.2,1.9147]
[1765994704321,0.96521849,2859.0,2858.5,0.02445372]
[1765994704517,0.96521849,2859.0,2858.3,0.02445372]
[1765994705241,0.02445372,2861.6,2858.3,0.02445372]
[1765994705242,2.07068023,2859.6,2858.9,0.02445372]
[1765994705540,1.6063,2859.3,2858.5,0.02445372]
[1765994705708,1.6063,2859.3,2858.3,0.02445372]
[1765994705709,0.562,2859.3,2858.3,0.02445372]
[1765994705910,1.6063,2859.0,2858.0,1.94115372]
[1765994706111,1.6063,2858.8,2858.0,0.002]
[1765994706311,3.55280849,2858.7,2857.1,1.9147]
[1765994706659,3.55280849,2858.7,2857.0,2.27895372]
[1765994706660,1.6023,2858.3,2857.3,2.2545]
[1765994706872,0.21683,2858.7,2858.0,3.49890924]
[1765994707009,0.562,2859.3,2858.3,1.9147]
[1765994707338,2.1643,2859.3,2858.4,0.02445372]
[1765994707511,0.21643,2859.2,2858.4,0.02445372]
[1765994707836,0.46438023,2859.1,2858.4,0.02445372]
[1765994708041,1.5779,2859.0,2858.1,0.02445372]
[1765994708209,1.5534,2858.8,2858.1,0.02445372]
[1765994708405,0.563,2858.9,2857.7,0.02445372]
[1765994708406,0.46438023,2858.6,2857.7,0.02445372]
[1765994708613,1.5534,2858.4,2857.7,0.02445372]
[1765994708922,1.5534,2858.4,2857.5,1.93915372]
[1765994708923,1.5534,2858.4,2857.5,0.02445372]
[1765994709237,1.5289,2858.1,2857.5,0.02445372]
[1765994709606,0.563,2858.5,2857.4,3.52413805]
[1765994709820,1.5289,2858.4,2857.6,3.52381201]
[1765994710160,1.5289,2858.4,2857.8,0.02445372]
[1765994710448,1.02738023,2858.5,2857.6,4.06795858]
[1765994710449,2.0675,2858.5,2857.6,7.02328512]
[1765994710664,5.112951,2858.8,2857.9,0.02445372]
[1765994710813,1.5045,2858.8,2858.1,0.02445372]
[1765994711422,0.562,2859.0,2858.3,0.02445372]
[1765994711625,0.562,2859.0,2858.5,1.9873]
[1765994711961,0.46438023,2859.0,2858.3,2.25655372]
[1765994712224,0.46438023,2859.0,2858.5,0.02445372]
[1765994712626,0.21643,2859.2,2858.5,0.02445372]
[1765994712853,0.563,2859.3,2858.7,0.02445372]
[1765994713153,6.171752,2859.5,2858.5,3.52276609]
[1765994713362,1.5045,2859.5,2858.7,0.02445372]
[1765994713560,0.563,2859.7,2858.9,0.02445372]
[1765994714242,0.563,2859.7,2859.0,0.02445372]
[1765994714243,4.52426092,2859.7,2859.0,0.02445372]
[1765994714453,8.02114161,2859.7,2859.0,0.02445372]
[1765994714753,8.02114161,2859.7,2858.7,2.3664757]
[1765994715054,1.02738023,2859.7,2858.9,0.02445372]
[1765994715352,0.563,2859.7,2859.1,0.02445372]
[1765994715772,1.96888023,2859.6,2858.7,0.02445372]
[1765994715947,1.96888023,2859.6,2858.9,0.02445372]
[1765994715948,1.5045,2859.6,2858.9,0.02445372]
[1765994716151,0.46438023,2859.5,2858.9,0.02445372]
[1765994716690,1.01097296,2859.5,2858.9,0.02445372]
[1765994717177,0.001,2859.0,2858.9,0.02445372]
[1765994719756,0.001,2859.0,2858.3,0.002]
[1765994719956,0.001,2859.0,2857.9,0.02445372]
[1765994719957,1.5025,2858.7,2857.9,0.02445372]
[1765994720270,1.96688023,2858.6,2857.6,0.02445372]
[1765994720472,0.46438023,2858.5,2857.9,0.02445372]
[1765994720685,0.001,2859.0,2858.2,2.2321]
[1765994720891,0.001,2859.0,2858.6,2.01175372]
[1765994721186,0.001,2859.0,2858.8,0.02445372]
[1765994721368,0.001,2859.0,2858.8,2.01175372]
[1765994721882,0.001,2859.0,2858.6,2.2321]
[1765994722039,0.001,2859.0,2858.7,0.02445372]
[1765994722757,0.001,2859.0,2858.9,0.02445372]
[1765994723557,0.001,2859.0,2858.8,0.02445372]
[1765994723844,0.46438023,2859.6,2858.9,2.01175372]
[1765994724293,0.562,2859.7,2859.2,0.02445372]
[1765994724502,0.562,2859.7,2859.2,2.01175372]
[1765994724786,0.46438023,2859.6,2858.9,0.02445372]
[1765994725754,0.562,2859.7,2859.1,0.02445372]
[1765994725976,0.46438023,2859.6,2859.1,0.02445372]
[1765994726689,0.562,2859.7,2859.1,3.5220429]
[1765994726854,0.562,2859.7,2859.1,0.02445372]
[1765994727052,0.001,2860.2,2859.5,2.01175372]
[1765994727257,1.5025,2860.0,2859.1,0.3791123]
[1765994727563,0.562,2859.9,2859.4,0.02445372]
[1765994727766,2.0645,2859.9,2859.1,2.01175372]
[1765994727962,2.0645,2859.9,2859.3,0.02445372]
[1765994728296,0.001,2860.2,2859.7,0.02445372]
[1765994728495,0.001,2860.2,2859.9,4.2194]
[1765994728652,0.001,2860.2,2859.9,2.2321]
[1765994728860,1.5025,2860.9,2860.0,1.9873]
[1765994729188,1.96788023,2860.8,2859.7,6.07062196]
[1765994729389,1.5035,2860.5,2859.5,0.02445372]
[1765994729563,1.5035,2860.2,2859.3,2.01175372]
[1765994729770,1.479,2860.6,2859.7,2.01175372]
[1765994729955,0.2041,2860.5,2859.9,0.02445372]
[1765994730160,1.6831,2860.5,2859.9,0.02445372]
[1765994730361,0.46438023,2860.4,2859.7,2.01175372]
[1765994730601,0.2041,2860.5,2859.9,0.02445372]
[1765994730886,0.46438023,2860.4,2859.9,0.02445372]
[1765994731085,0.41643731,2860.3,2859.9,0.02445372]
[1765994731288,0.2041,2860.5,2860.0,0.02445372]
[1765994731457,0.2041,2860.5,2860.0,2.01175372]
[1765994731657,0.66848023,2860.5,2860.0,2.01175372]
[1765994731988,1.94338023,2860.3,2859.9,0.02445372]
[1765994732194,0.2041,2860.5,2859.9,0.02445372]
[1765994732396,0.46438023,2860.4,2859.8,0.02445372]
[1765994732692,3.96141435,2860.4,2859.8,0.02445372]
[1765994732855,0.76614108,2860.3,2859.8,0.02445372]
[1765994733051,2.24514108,2860.3,2859.8,0.02445372]
[1765994733287,1.479,2860.2,2859.8,0.02445372]
[1765994733687,1.94338023,2860.2,2859.3,2.01175372]
[1765994733991,1.479,2860.1,2859.3,0.58645372]
[1765994734160,2.44515213,2860.1,2859.5,0.02445372]
[1765994734360,0.46438023,2860.0,2859.5,0.02445372]
[1765994734587,1.94338023,2860.0,2859.5,0.02445372]
[1765994734788,1.94338023,2860.0,2858.3,2.01375372]
[1765994734789,1.4546,2859.7,2858.3,2.01375372]
[1765994735007,0.405504,2859.5,2858.3,2.01375372]
[1765994735213,9.231343,2859.1,2858.3,0.02645372]
[1765994735391,0.1860104,2859.6,2858.3,0.002]
[1765994735392,1.4546,2858.9,2858.3,0.002]
[1765994736217,1.4546,2858.9,2857.9,0.02445372]
[1765994736422,6.99594234,2858.8,2857.9,0.02445372]
[1765994736597,1.30943446,2858.7,2857.9,0.02445372]
[1765994736796,0.46438023,2858.5,2857.9,0.02445372]
[1765994737099,1.4526,2858.6,2857.8,0.02445372]
[1765994737412,1.4526,2858.6,2857.6,5.03295446]
[1765994737413,1.4526,2858.3,2857.7,0.02445372]
[1765994737713,1.4526,2858.3,2857.9,0.02445372]
[1765994737714,0.20136,2858.3,2857.9,0.02445372]
[1765994737915,3.49727224,2859.4,2858.1,4.24385372]
[1765994738091,1.4526,2859.0,2858.1,2.01175372]
[1765994738415,0.562,2859.0,2858.3,0.02445372]
[1765994738615,1.02638023,2859.0,2858.3,0.02445372]
[1765994738814,0.46438023,2859.2,2858.3,0.02445372]
[1765994739018,0.46438023,2859.1,2858.3,2.01175372]
[1765994739314,1.91698023,2859.1,2858.3,0.02445372]
[1765994740703,5.41461296,2859.1,2858.5,0.02445372]
[1765994740908,1.4526,2859.1,2858.5,0.02445372]
[1765994741202,0.46438023,2859.1,2858.5,0.02445372]
[1765994741407,0.001,2859.0,2858.5,0.02445372]
[1765994741718,0.001,2859.0,2858.8,1.9611]
[1765994742017,0.001,2859.0,2858.7,0.02445372]
[1765994742018,6.740883,2859.7,2859.0,1.9611]
[1765994742224,0.46438023,2859.4,2858.7,0.561]
[1765994742387,0.46438023,2859.4,2858.7,0.02445372]
[1765994742388,8.850727,2859.4,2858.7,0.02445372]
[1765994742588,0.46438023,2859.3,2858.7,0.02445372]
[1765994742915,1.4536,2859.3,2858.9,0.02445372]
[1765994743135,1.91798023,2859.3,2858.9,0.02445372]
[1765994743286,0.46438023,2859.3,2858.9,0.02445372]
[1765994743487,1.91798023,2859.3,2858.7,0.02445372]
[1765994743684,2.80923643,2859.3,2858.5,0.02445372]
[1765994743884,2.80923643,2859.3,2858.7,0.02445372]
[1765994744519,1.35563643,2859.3,2858.7,0.02445372]
[1765994744719,0.561,2859.8,2859.0,2.3091]
[1765994744901,0.561,2859.8,2859.1,0.02445372]
[1765994745587,0.46438023,2859.6,2859.1,0.02445372]
[1765994745805,0.561,2859.8,2859.1,0.02445372]
[1765994746008,2.0146,2859.8,2859.1,0.02445372]
[1765994746214,2.30304842,2859.8,2859.1,0.02445372]
[1765994746410,0.561,2859.8,2859.1,2.33355372]
[1765994746721,0.46438023,2859.6,2859.1,0.02445372]
[1765994746898,0.46438023,2859.7,2859.1,0.02445372]
[1765994747102,1.91798023,2859.7,2858.9,0.58545372]
[1765994747413,2.86523984,2859.7,2858.9,0.58545372]
[1765994747611,1.4536,2859.6,2858.9,0.58545372]
[1765994748219,1.41163984,2859.7,2859.1,0.02445372]
[1765994748392,1.41163984,2859.7,2858.8,0.02445372]
[1765994748393,1.4536,2859.5,2858.8,0.02445372]
[1765994748593,0.28652398,2859.5,2858.8,0.02445372]
[1765994748819,0.46438023,2859.7,2859.2,0.02445372]
[1765994749718,0.46438023,2859.7,2859.0,1.98555372]
[1765994750920,0.46438023,2859.5,2859.0,1.98555372]
[1765994751225,0.46438023,2859.6,2859.0,1.98555372]
[1765994751416,0.46438023,2859.7,2859.2,1.98555372]
[1765994751617,7.25049594,2859.7,2859.2,1.98555372]
[1765994751816,7.25049594,2859.7,2859.2,0.02445372]
[1765994752125,7.25049594,2859.7,2859.0,0.02445372]
[1765994752324,7.25049594,2859.7,2859.0,1.98555372]
[1765994752623,7.25049594,2859.7,2859.2,0.02445372]
[1765994752822,7.25049594,2859.7,2859.2,1.98555372]
[1765994753022,6.85438023,2859.7,2859.4,0.02445372]
[1765994753199,6.85438023,2859.7,2859.2,0.02445372]
[1765994753396,11.8048893,2859.7,2859.2,0.02445372]
[1765994753602,6.85438023,2859.7,2859.2,0.02445372]
[1765994754120,1.4536,2859.6,2859.0,0.02445372]
[1765994754516,1.4536,2859.6,2858.8,0.02445372]
[1765994754895,1.4536,2859.6,2858.8,3.52240587]
[1765994755103,8.8001697,2859.7,2859.0,1.98555372]
[1765994755323,12.29706189,2859.7,2859.0,2.33355372]
[1765994755494,8.8001697,2859.7,2859.2,0.02445372]
[1765994755928,2.65879854,2859.6,2859.2,0.02445372]
[1765994756224,1.22969854,2859.6,2859.2,0.02445372]
[1765994756898,7.41538023,2859.7,2859.2,0.02445372]
[1765994757104,7.41538023,2859.7,2859.4,0.02445372]
[1765994757634,0.001,2860.0,2859.5,2.3091]
[1765994757812,0.001,2860.0,2859.7,4.2702]
[1765994758011,0.001,2860.0,2859.7,1.9611]
[1765994758217,0.001,2860.0,2859.6,0.02445372]
[1765994758438,0.001,2860.0,2859.8,0.02445372]
[1765994759019,0.001,2860.0,2859.8,1.98555372]
[1765994759342,0.001,2860.2,2860.0,1.9611]
[1765994759636,0.001,2860.2,2860.0,1.98555372]
[1765994760019,0.001,2860.4,2860.0,0.02445372]
[1765994760226,0.46538023,2860.4,2860.0,0.02445372]
[1765994760422,0.46538023,2860.4,2860.0,1.98555372]
[1765994760727,0.46538023,2860.4,2860.0,4.29465372]
[1765994761033,6.391,2861.1,2860.3,2.3091]
[1765994761233,6.391,2861.1,2860.3,4.2702]
[1765994761436,0.001,2861.1,2860.2,7.01687098]
[1765994761635,8.3831,2861.8,2860.3,0.03496136]
[1765994761805,8.3831,2861.8,2860.8,2.3091]
[1765994762005,8.3831,2861.8,2861.1,1.9611]
[1765994762246,0.46438023,2861.7,2861.1,1.9611]
[1765994762404,3.49450017,2861.7,2861.1,1.9611]
[1765994762604,3.95886892,2861.7,2861.1,1.9611]
[1765994762806,0.561,2861.8,2861.3,1.9611]
[1765994763034,0.46438023,2861.5,2860.8,1.98555372]
[1765994763241,3.49479133,2861.5,2860.8,1.98555372]
[1765994763404,0.34957913,2861.4,2860.6,0.561]
[1765994763605,0.001,2861.6,2860.6,0.561]
[1765994763606,0.001,2861.6,2861.2,1.9611]
[1765994763841,1.4351,2862.1,2861.4,1.9611]
[1765994764006,0.46438023,2861.9,2861.4,4.2702]
[1765994764206,3.49393899,2862.1,2861.4,2.3091]
[1765994764406,6.98787798,2862.1,2861.4,2.3091]
[1765994764612,0.6987878,2862.0,2861.3,1.9611]
[1765994765030,1.16316803,2862.0,2861.3,1.9611]
[1765994765309,0.6987878,2862.0,2861.3,1.9611]
[1765994765610,0.001,2862.3,2861.6,0.02445372]
[1765994765809,0.001,2862.3,2862.1,1.9611]
[1765994766047,0.001,2862.7,2862.1,2.3091]
[1765994766258,0.001,2862.7,2862.3,2.3091]
[1765994766426,0.001,2862.7,2862.4,1.9611]
[1765994766612,0.001,2862.7,2862.0,0.561]
[1765994767008,3.49420642,2862.7,2862.0,0.561]
[1765994767245,0.49413064,2862.7,2862.0,0.58545372]
[1765994767427,0.49413064,2862.7,2861.8,0.58545372]
[1765994767428,1.4371,2862.6,2861.8,0.58545372]
[1765994767632,0.46438023,2862.6,2861.9,1.9611]
[1765994767818,0.46438023,2862.6,2862.0,4.29465372]
[1765994768021,0.46438023,2862.6,2861.8,0.58545372]
[1765994768247,0.74517974,2862.6,2862.0,0.02445372]
[1765994768556,0.74517974,2862.6,2861.8,2.89455372]
[1765994768557,1.90148023,2862.6,2861.8,0.02445372]
[1765994768912,3.494215,2862.7,2862.1,4.2702]
[1765994769249,0.46438023,2862.6,2862.1,4.2702]
[1765994769449,0.46538023,2862.7,2862.2,2.39655372]
[1765994769650,0.46538023,2862.7,2862.1,4.05490404]
[1765994769651,0.001,2862.7,2862.1,0.561]
[1765994769817,0.46538023,2862.6,2862.0,2.08595372]
[1765994770017,0.46538023,2862.6,2862.0,2.64695372]
[1765994770414,0.46538023,2862.6,2862.0,2.08595372]
[1765994770620,1.21066383,2862.6,2861.9,0.561]
[1765994770820,1.21066383,2862.6,2862.0,0.02445372]
[1765994771541,4.70405626,2862.6,2862.0,0.02445372]
[1765994771711,1.90148023,2862.4,2861.6,0.02445372]
[1765994771912,1.85455224,2862.3,2861.6,0.02445372]
[1765994772118,1.85455224,2862.3,2861.4,2.95195372]
[1765994772324,2.31893247,2862.3,2861.4,2.95195372]
[1765994772524,2.31893247,2862.3,2861.4,4.96875372]
[1765994773050,0.46438023,2862.3,2861.8,2.0168]
[1765994773429,0.46438023,2862.3,2861.8,4.3843]
[1765994773627,0.46438023,2862.3,2861.9,2.04125372]
[1765994773933,0.46438023,2862.3,2861.9,0.02445372]
[1765994774331,6.39,2862.4,2862.0,2.0168]
[1765994774531,0.001,2862.6,2862.0,2.0168]
[1765994774854,0.001,2862.6,2862.2,2.3675]
[1765994775155,0.001,2862.6,2862.3,4.3843]
[1765994775352,0.001,2862.7,2862.4,2.42688943]
[1765994775540,0.001,2862.7,2862.5,2.0168]
[1765994775736,6.39,2863.1,2862.5,2.0168]
[1765994775948,0.001,2863.4,2862.7,2.04125372]
[1765994776138,3.49340794,2863.4,2862.8,2.0168]
[1765994776336,8.88931588,2863.4,2862.7,0.02445372]
[1765994776668,0.46438023,2863.3,2862.6,0.56]
[1765994776832,8.88931588,2863.4,2862.6,0.56]
[1765994777032,9.83424747,2863.4,2862.6,0.56]
[1765994777233,2.36788023,2863.3,2862.4,2.04125372]
[1765994777432,2.36788023,2863.3,2862.4,2.60125372]
[1765994777660,0.46438023,2863.3,2862.6,2.04125372]
[1765994777864,3.4924905,2863.3,2862.6,4.40875372]
[1765994778158,3.4924905,2863.3,2862.6,2.04125372]
[1765994778355,4.28557781,2863.3,2862.6,2.04125372]
[1765994778926,0.79308731,2863.3,2862.6,2.04125372]
[1765994779154,0.001,2863.4,2862.8,0.02445372]
[1765994779673,0.46438023,2863.3,2862.8,0.02445372]
[1765994779877,3.95695896,2863.3,2862.7,2.0168]
[1765994780170,9.35303769,2863.3,2862.5,0.56]
[1765994780347,0.93540377,2863.2,2862.4,4.40875372]
[1765994780548,0.93540377,2863.2,2862.6,0.02445372]
[1765994781170,0.93540377,2863.2,2862.6,2.04125372]
[1765994781773,3.9577865,2863.4,2862.7,2.0168]
[1765994781975,3.95778749,2863.4,2862.8,0.02445372]
[1765994782874,7.45019475,2863.4,2862.7,2.0168]
[1765994783075,9.35369475,2863.4,2862.6,0.58445372]
[1765994783280,9.35369475,2863.4,2862.6,0.02445372]
[1765994783281,1.9035,2863.3,2862.6,0.02445372]
[1765994783447,3.47786948,2863.3,2862.6,0.02445372]
[1765994784076,2.36788023,2862.9,2862.0,2.60125372]
[1765994784378,1.9035,2862.9,2862.1,2.0168]
[1765994785158,0.001,2863.3,2862.5,2.3675]
[1765994785357,0.46438023,2863.2,2862.6,2.0168]
[1765994785558,0.001,2863.3,2862.7,2.3675]
[1765994785882,0.001,2863.3,2862.6,3.13026421]
[1765994786045,0.001,2863.3,2862.7,2.0168]
[1765994786247,0.001,2863.3,2862.8,2.3675]